[Event "Schachfestival IM 2018"]
[Site "Lueneburg"]
[Date "2018.07.12"]
[Round "8"]
[White "Pubantz, Jan"]
[Black "Polster, Christian"]
[Result "0-1"]
[ECO "E10"]
[WhiteElo "1997"]
[BlackElo "2286"]
[Annotator "NA"]
[PlyCount "64"]
[EventDate "2018.07.05"]
[EventType "tourn"]
[EventCountry "GER"]
[SourceTitle "playchess.com"]
[Source "ChessBase"]
[SourceQuality "1"]
[TimeControl "40/5400+30:1800+30"]

1. d4 {[%emt 0:02:01]} Nf6 {[%emt 0:00:18]} 2. c4 {[%emt 0:00:05]} e6 {[%emt 0:00:31]} 3. Nf3 {[%emt 0:00:13]} c5 {[%emt 0:00:06]} 4. Nc3 {[%emt 0:00:39]} cxd4 {[%emt 0:00:33]} 5. Nxd4 {[%emt 0:00:06]} d5 {[%emt 0:00:08]} 6. Bg5 {[%emt 0:13:45]} e5 {[%emt 0:00:59]} 7. Nf3 {[%emt 0:04:57]} d4 {[%emt 0:00:25]} 8. Nd5 {[%emt 0:08:32]} Nc6 {[%emt 0:00:55]} 9. e4 {[%emt 0:13:58]} Be7 {[%emt 0:03:02]} 10. Bxf6 {[%emt 0:02:07]} Bxf6 {[%emt 0:01:13]} 11. Be2 {[%emt 0:00:49]} O-O {[%emt 0:00:37]} 12. O-O {[%emt 0:00:04]} g6 {[%emt 0:02:39]} 13. b4 {[%emt 0:01:30]} Bg7 {[%emt 0:01:18]} 14. c5 Be6 {[%emt 0:04:24]} 15. Qb3 {[%emt 0:10:40]} f5 {[%emt 0:08:24]} 16. Bc4 {[%emt 0:00:49]} Bf7 {[%emt 0:05:44]} 17. Nd2 {[%emt 0:06:22]} Bh6 {[%emt 0:03:42]} 18. Rad1 {[%emt 0:08:26]} Bxd2 {[%emt 0:26:34]} 19. Rxd2 {[%emt 0:00:10]} fxe4 {[%emt 0:00:08]} 20. Re2 {[%emt 0:03:15]} b5 {[%emt 0:01:07]} 21. cxb6 {[%emt 0:00:40]} axb6 {[%emt 0:00:10]} 22. a4 {[%emt 0:00:38]} Ra7 {[%emt 0:00:16]} 23. Rc1 {[%emt 0:07:03]} Rd7 {[%emt 0:01:36]} 24. Nf4 {[%emt 0:09:48]} exf4 {[%emt 0:09:13]} 25. Bxf7+ {[%emt 0:00:07]} Rfxf7 {[%emt 0:02:14]} 26. Rxc6 {[%emt 0:01:06]} d3 {[%emt 0:08:50]} 27. Rxe4 {[%emt 0:03:28]} d2 {[%emt 0:00:59]} 28. Qd1 {[%emt 0:00:05]} Rfe7 {[%emt 0:01:26]} 29. f3 {[%emt 0:00:23]} Rxe4 {[%emt 0:01:26]} 30. fxe4 {[%emt 0:00:05]} Qh4 {[%emt 0:00:35]} 31. Rc8+ {[%emt 0:03:05]} Kg7 {[%emt 0:00:41]} 32. Qa1+ {[%emt 0:00:20]} Kh6 {[%emt 0:00:09]} 0-1

[Event "Schachfestival IM 2018"]
[Site "Lueneburg"]
[Date "2018.07.13"]
[Round "9"]
[White "Sriram, Jha"]
[Black "Light, Bjarne"]
[Result "1/2-1/2"]
[ECO "E58"]
[WhiteElo "2409"]
[BlackElo "2177"]
[Annotator "NA"]
[PlyCount "39"]
[EventDate "2018.07.05"]
[EventType "tourn"]
[EventCountry "GER"]
[SourceTitle "playchess.com"]
[Source "ChessBase"]
[SourceQuality "1"]
[TimeControl "40/5400+30:1800+30"]

1. d4 {[%emt 0:00:49]} Nf6 {[%emt 0:00:00]} 2. c4 {[%emt 0:00:18]} e6 {[%emt 0:00:00]} 3. Nc3 {[%emt 0:00:58]} Bb4 {[%emt 0:00:00]} 4. e3 {[%emt 0:00:23]} O-O {[%emt 0:00:36]} 5. Bd3 {[%emt 0:00:44]} d5 {[%emt 0:01:06]} 6. Nf3 {[%emt 0:02:04]} c5 {[%emt 0:00:51]} 7. O-O {[%emt 0:00:05]} Nc6 {[%emt 0:00:58]} 8. a3 {[%emt 0:00:05]} Bxc3 {[%emt 0:00:05]} 9. bxc3 {[%emt 0:00:01]} dxc4 {[%emt 0:00:24]} 10. Bxc4 {[%emt 0:00:04]} Qc7 {[%emt 0:00:17]} 11. Ba2 {[%emt 0:00:33]} b6 {[%emt 0:07:27]} 12. Bb2 {[%emt 0:04:17]} Bb7 {[%emt 0:00:58]} 13. Qe2 {[%emt 0:04:48]} Na5 {[%emt 0:17:03]} 14. Rfd1 {[%emt 0:06:22]} Rac8 {[%emt 0:07:25]} 15. c4 {[%emt 0:14:46]} Ne4 {[%emt 0:05:24]} 16. Rac1 {[%emt 0:09:09]} f6 {[%emt 0:07:11]} 17. Qd3 {[%emt 0:09:25]} Rce8 {[%emt 0:06:22]} 18. d5 {[%emt 0:09:45]} Nd6 {[%emt 0:02:26]} 19. Bb1 {[%emt 0:09:15]} g6 {[%emt 0:01:32]} 20. Nd2 {[%emt 0:02:53]} 1/2-1/2

[Event "Schachfestival IM 2018"]
[Site "Lueneburg"]
[Date "2018.07.13"]
[Round "9"]
[White "Fuchs, Judith"]
[Black "Pubantz, Jan"]
[Result "1-0"]
[WhiteElo "2289"]
[BlackElo "1997"]
[Annotator "NA"]
[PlyCount "41"]
[EventDate "2018.07.05"]
[EventType "tourn"]
[EventCountry "GER"]
[SourceTitle "playchess.com"]
[Source "ChessBase"]
[SourceQuality "1"]
[TimeControl "40/5400+30:1800+30"]

1. e4 {[%emt 0:00:00]} c5 {[%emt 0:00:00]} 2. Ne2 {[%emt 0:00:00]} d6 {[%emt 0:00:00]} 3. g3 {[%emt 0:00:00]} Nf6 {[%emt 0:10:49]} 4. Bg2 {[%emt 0:00:00]} g6 {[%emt 0:00:52]} 5. c3 {[%emt 0:00:40]} Bg7 {[%emt 0:01:48]} 6. O-O {[%emt 0:01:10]} O-O {[%emt 0:00:19]} 7. d4 {[%emt 0:00:07]} cxd4 {[%emt 0:01:06]} 8. cxd4 {[%emt 0:00:06]} Nc6 {[%emt 0:03:06]} 9. Nbc3 {[%emt 0:00:15]} Qa5 {[%emt 0:06:37]} 10. h3 {[%emt 0:02:51]} e5 {[%emt 0:12:35]} 11. d5 {[%emt 0:04:22]} Ne7 {[%emt 0:01:21]} 12. Be3 {[%emt 0:01:19]} b5 {[%emt 0:12:23]} 13. a3 {[%emt 0:10:54]} b4 {[%emt 0:01:09]} 14. axb4 {[%emt 0:02:37]} Qxb4 {[%emt 0:00:05]} 15. Ra4 {[%emt 0:06:06]} Qb7 {[%emt 0:13:51]} 16. Qa1 {[%emt 0:01:43]} a6 {[%emt 0:00:40]} 17. Qa3 {[%emt 0:01:13]} Bd7 {[%emt 0:07:52]} 18. Rb4 {[%emt 0:03:11]} Bb5 {[%emt 0:03:44]} 19. Qb3 {[%emt 0:09:28]} Rfb8 {[%emt 0:01:19]} 20. Ra1 {[%emt 0:00:30]} Nd7 {[%emt 0:03:34]} 21. Ra5 {[%emt 0:07:43]} 1-0

[Event "Schachfestival IM 2018"]
[Site "Lueneburg"]
[Date "2018.07.13"]
[Round "9"]
[White "Polster, Christian"]
[Black "Lubbe, Melanie"]
[Result "1/2-1/2"]
[ECO "B20"]
[WhiteElo "2286"]
[BlackElo "2332"]
[Annotator "NA"]
[PlyCount "39"]
[EventDate "2018.07.05"]
[EventType "tourn"]
[EventCountry "GER"]
[SourceTitle "playchess.com"]
[Source "ChessBase"]
[SourceQuality "1"]
[TimeControl "40/5400+30:1800+30"]

1. e4 {[%emt 0:02:53]} c5 {[%emt 0:00:00]} 2. Nf3 {[%emt 0:00:11]} e6 {[%emt 0:00:00]} 3. d4 {[%emt 0:00:24]} cxd4 {[%emt 0:00:00]} 4. Nxd4 {[%emt 0:00:06]} Nf6 {[%emt 0:00:24]} 5. Bd3 {[%emt 0:01:30]} Nc6 {[%emt 0:00:10]} 6. Nxc6 {[%emt 0:01:19]} bxc6 {[%emt 0:00:05]} 7. Qe2 {[%emt 0:02:14]} d5 {[%emt 0:02:22]} 8. Nd2 {[%emt 0:03:11]} Be7 {[%emt 0:00:49]} 9. c4 {[%emt 0:05:50]} O-O {[%emt 0:02:53]} 10. O-O {[%emt 0:02:45]} a5 {[%emt 0:03:41]} 11. Rd1 {[%emt 0:23:55]} Ba6 {[%emt 0:06:27]} 12. b3 {[%emt 0:13:29]} Qb6 {[%emt 0:05:38]} 13. Bb2 {[%emt 0:02:01]} Rfd8 {[%emt 0:06:41]} 14. cxd5 {[%emt 0:11:56]} Bxd3 {[%emt 0:03:49]} 15. Qxd3 {[%emt 0:00:07]} cxd5 {[%emt 0:00:57]} 16. exd5 {[%emt 0:02:08]} Rxd5 {[%emt 0:01:17]} 17. Nc4 {[%emt 0:03:31]} Qb7 {[%emt 0:10:23]} 18. Qf3 {[%emt 0:05:26]} a4 {[%emt 0:01:48]} 19. Rxd5 {[%emt 0:02:16]} exd5 {[%emt 0:01:41]} 20. Ne3 {[%emt 0:03:29]} 1/2-1/2

[Event "Schachfestival IM 2018"]
[Site "Lueneburg"]
[Date "2018.07.13"]
[Round "9"]
[White "Wenzel, Birger"]
[Black "Kuberczyk, Christoph"]
[Result "0-1"]
[WhiteElo "2084"]
[BlackElo "2225"]
[Annotator "NA"]
[PlyCount "34"]
[EventDate "2018.07.05"]
[EventType "tourn"]
[EventCountry "GER"]
[SourceTitle "playchess.com"]
[Source "ChessBase"]
[SourceQuality "1"]
[TimeControl "40/5400+30:1800+30"]

1. e4 {[%emt 0:00:00]} e6 {[%emt 0:01:32]} 2. d3 {[%emt 0:01:55]} d5 {[%emt 0:00:28]} 3. Nd2 {[%emt 0:00:10]} c5 {[%emt 0:01:03]} 4. Ngf3 {[%emt 0:00:10]} Nc6 {[%emt 0:00:21]} 5. g3 {[%emt 0:00:07]} Nf6 {[%emt 0:00:59]} 6. Bg2 {[%emt 0:02:25]} Be7 {[%emt 0:00:10]} 7. O-O {[%emt 0:00:11]} O-O {[%emt 0:00:26]} 8. Re1 {[%emt 0:02:08]} b5 {[%emt 0:01:18]} 9. c3 {[%emt 0:05:03]} b4 {[%emt 0:04:30]} 10. e5 {[%emt 0:09:52]} bxc3 {[%emt 0:07:03]} 11. bxc3 {[%emt 0:02:49]} Nd7 {[%emt 0:00:09]} 12. h4 {[%emt 0:17:58]} Qa5 {[%emt 0:14:58]} 13. Qc2 {[%emt 0:07:31]} Ba6 {[%emt 0:05:19]} 14. Nf1 {[%emt 0:02:24]} Qb5 {[%emt 0:09:08]} 15. d4 {[%emt 0:12:59]} cxd4 {[%emt 0:07:27]} 16. cxd4 {[%emt 0:03:20]} Rfc8 {[%emt 0:03:35]} 17. Rb1 {[%emt 0:02:45]} Nb4 {[%emt 0:07:17]} 0-1